fUSD/lending_fUSD_20260106
["ID","MTS","AMOUNT","RATE_DAILY","PERIOD"]
[400585921,1767733847244,-3388.2,0.00041397,30]
[400585922,1767733847254,-167.0,0.00041397,120]
[400585923,1767733847263,-152.0,0.000414,120]
[400585924,1767733847273,-4768.97,0.000414,14]
[400585925,1767733847285,-153.0,0.00041443,120]
[400585926,1767733847296,-153.0,0.00041443,120]
[400585927,1767733847305,-1353.9,0.00041474,30]
[400585928,1767733847314,-398.86540225,0.00041489,2]
[400585929,1767733847325,-160.0,0.000415,39]
[400585930,1767733847334,-153.0,0.00041543,120]
[400585931,1767733847343,-661.18,0.00041589,30]
[400585932,1767733847352,-661.18,0.00041589,30]
[400585933,1767733847364,-661.18,0.00041589,30]
[400585934,1767733847373,-661.18,0.00041589,30]
[400585935,1767733847382,-153.0,0.00041643,120]
[400585936,1767733847391,-632.83,0.00041644,120]
[400585937,1767733847401,-208.38787665,0.00041644,10]
[400585938,1767733847411,-20537.0,0.00041698,30]
[400585939,1767733847420,-1120.22,0.000417,14]
[400585940,1767733847430,-153.0,0.00041743,120]
[400585941,1767733847439,-1000.0,0.00041789,14]
[400585942,1767733847448,-833.0,0.00041836,11]
[400585943,1767733847457,-153.0,0.00041843,120]
[400585944,1767733847466,-162.0,0.00041845,11]
[400585945,1767733847475,-178.99,0.00041863,30]
[400585946,1767733847484,-171.25,0.00041863,30]
[400585947,1767733847493,-150.0,0.00041863,30]
[400585948,1767733847502,-466.43,0.00041863,30]
[400585949,1767733847511,-178.99,0.00041863,30]
[400585950,1767733847520,-171.25,0.00041863,30]
[400585951,1767733847529,-466.43,0.00041863,30]
[400585952,1767733847539,-150.0,0.00041863,30]
[400585953,1767733847548,-178.24,0.00041863,30]
[400585954,1767733847557,-342.5,0.00041863,30]
[400585955,1767733847566,-466.43,0.00041863,30]
[400585956,1767733847575,-466.43,0.00041863,30]
[400585957,1767733847584,-171.25,0.00041863,30]
[400585958,1767733847594,-152.0,0.000419,120]
[400585959,1767733847603,-625.59098541,0.000419,120]
[400585960,1767733847613,-625.59098531,0.000419,120]
[400585961,1767733847623,-625.59098531,0.000419,120]
[400585962,1767733847631,-625.59098531,0.000419,120]
[400585963,1767733847641,-200.0,0.00041918,10]
[400585964,1767733847650,-151.0,0.00041927,14]
[400585965,1767733847659,-25000.0,0.0004193,15]
[400585966,1767733847667,-25000.0,0.00041939,15]
[400585967,1767733847676,-153.0,0.00041943,120]
[400585968,1767733847685,-25000.0,0.00041948,15]
[400585969,1767733847695,-25000.0,0.00041957,15]
[400585970,1767733847704,-25000.0,0.00041966,15]
[400585971,1767733847713,-21628.30166643,0.00041967,15]
[400585972,1767733847722,-25000.0,0.00041974,15]
[400585973,1767733847731,-25000.0,0.00041983,15]
[400585974,1767733847740,-1000.0,0.00042,2]
[400585975,1767733847749,-199.0,0.00042,30]
[400585976,1767733847759,-160.16882997,0.00042,15]
[400585977,1767733847768,-1032.62372196,0.00042,30]
[400585978,1767733847777,-153.0,0.00042043,120]
[400585979,1767733847786,-502.0,0.00042069,16]
[400585980,1767733847796,-152.0,0.000421,120]
[400585981,1767733847805,-20537.0,0.00042119,30]
[400585982,1767733847814,-153.0,0.00042143,120]
[400585983,1767733847823,-2843.16498654,0.00042171,7]
[400585984,1767733847832,-1353.9,0.00042184,30]
[400585985,1767733847842,-1000.0,0.000422,7]
[400585986,1767733847851,-153.0,0.00042243,120]
[400585987,1767733847864,-153.0,0.00042343,120]
[400585988,1767733847873,-11844.77875623,0.00042346,5]
[400585989,1767733847882,-153.0,0.00042443,120]
[400585990,1767733847891,-500.0,0.0004248,30]
[400585991,1767733847901,-349.83087352,0.0004248,60]
[400585992,1767733847910,-5960.32232019,0.00042481,14]
[400585993,1767733847919,-5960.32232019,0.00042481,14]
[400585994,1767733847928,-5960.32232019,0.00042481,14]
[400585995,1767733847938,-5960.32232019,0.00042481,14]
[400585996,1767733847947,-5960.32232019,0.00042481,14]
[400585997,1767733847957,-5960.32232019,0.00042481,14]
[400585998,1767733847967,-5960.32232019,0.00042481,14]
[400585999,1767733847977,-5960.32232019,0.00042481,14]
[400586000,1767733847987,-5960.32232019,0.00042481,14]
[400586001,1767733847996,-5960.32232019,0.00042481,14]
[400586002,1767733848007,-5960.32232019,0.00042481,14]
[400586003,1767733848016,-5960.32232019,0.00042481,14]
[400586004,1767733848025,-5960.32232019,0.00042481,14]
[400586005,1767733848036,-5960.32232019,0.00042481,14]
[400586006,1767733848046,-1000.0,0.00042486,14]
[400586007,1767733848055,-160.0,0.000425,44]
[400586008,1767733848066,-911.64,0.00042504,120]
[400586009,1767733848075,-482.51,0.00042521,30]
[400586010,1767733848084,-482.51,0.00042521,30]
[400586011,1767733848093,-482.51,0.00042521,30]
[400586012,1767733848103,-1322.36,0.00042521,30]
[400586013,1767733848112,-482.51,0.00042521,30]
[400586014,1767733848122,-482.51,0.00042521,30]
[400586015,1767733848131,-661.18,0.00042521,30]
[400586016,1767733848141,-482.51,0.00042521,30]
[400586017,1767733848150,-661.18,0.00042521,30]
[400586018,1767733848161,-471.17,0.00042521,30]
[400586019,1767733848170,-661.18,0.00042521,30]
[400586020,1767733848179,-20537.0,0.0004254,30]
[400586021,1767733848188,-153.0,0.00042543,120]
[400586022,1767733848198,-661.18,0.00042548,30]
[400586023,1767733848209,-152.0,0.000426,120]
[400586024,1767733848218,-612.0,0.000426,30]
[400586025,1767733848228,-200.0,0.000426,30]
[400586026,1767733848237,-300.0,0.000426,30]
[400586027,1767733848246,-978.0,0.000426,30]
[400586028,1767733848255,-1000.0,0.00042601,14]
[400586029,1767733848265,-153.0,0.00042643,120]
[400586030,1767733848275,-150.0,0.00042658,30]
[400586031,1767733848287,-388.59,0.00042658,30]
[400586032,1767733848296,-342.5,0.00042658,30]
[400586033,1767733848306,-1184.56,0.00042658,30]
[400586034,1767733848315,-178.99,0.00042658,30]
[400586035,1767733848326,-178.99,0.00042658,30]
[400586036,1767733848335,-466.43,0.00042658,30]
[400586037,1767733848345,-178.99,0.00042658,30]
[400586038,1767733848355,-150.0,0.00042658,30]
[400586039,1767733848364,-171.25,0.00042658,30]
[400586040,1767733848374,-466.43,0.00042658,30]
[400586041,1767733848383,-178.99,0.00042658,30]
[400586042,1767733848393,-171.25,0.00042658,30]
[400586043,1767733848402,-466.43,0.00042658,30]
[400586044,1767733848412,-171.25,0.00042658,30]
[400586045,1767733848421,-466.43,0.00042658,30]
[400586046,1767733848430,-150.0,0.00042658,30]
[400586047,1767733848439,-171.33,0.00042658,30]
[400586048,1767733848448,-1203.0,0.00042661,30]
[400586049,1767733848458,-300.0,0.00042675,2]
[400586050,1767733848468,-150.0,0.00042685,30]
[400586051,1767733848479,-171.25,0.00042685,30]
[400586052,1767733848488,-1073.19,0.00042685,30]
[400586053,1767733848498,-155.21,0.00042685,30]
[400586054,1767733848507,-670.43,0.000427,14]
[400586055,1767733848517,-362.85890571,0.000427,30]
[400586056,1767733848527,-300.0,0.00042706,2]
[400586057,1767733848536,-300.0,0.00042725,2]
[400586058,1767733848546,-250.0,0.0004274,10]
[400586059,1767733848555,-163.25248251,0.0004274,120]
[400586060,1767733848564,-507.465941,0.0004274,10]
[400586061,1767733848573,-300.0,0.00042793,2]
[400586062,1767733848583,-300.0,0.00042796,2]
[400586063,1767733848592,-152.0,0.000428,120]
[400586064,1767733848602,-162.47850535,0.000428,120]
[400586065,1767733848611,-164.0,0.00042802,16]
[400586066,1767733848622,-833.0,0.00042802,16]
[400586067,1767733848631,-300.0,0.00042807,2]
[400586068,1767733848640,-300.0,0.0004282,2]
[400586069,1767733848649,-300.0,0.00042836,2]
[400586070,1767733848658,-300.0,0.00042864,2]
[400586071,1767733848667,-300.070459,0.00042867,113]
[400586072,1767733848676,-300.0,0.00042878,2]
[400586073,1767733848685,-300.0,0.00042881,2]
[400586074,1767733848694,-300.0,0.00042887,2]
[400586075,1767733848704,-1353.9,0.00042895,30]
[400586076,1767733848713,-300.0,0.00042899,2]
[400586077,1767733848723,-150.80527013,0.000429,120]
[400586078,1767733848732,-1000.0,0.00042902,21]
[400586079,1767733848742,-300.0,0.00042913,2]
[400586080,1767733848751,-300.0,0.00042915,2]
[400586081,1767733848761,-300.0,0.0004292,2]
[400586082,1767733848769,-300.0,0.00042931,2]
[400586083,1767733848778,-150.7,0.00042932,30]
[400586084,1767733848787,-439.29698496,0.00042933,30]
[400586085,1767733848796,-581.45000001,0.00042933,30]
[400586086,1767733848806,-365.64970051,0.00042933,30]
[400586087,1767733848815,-300.0,0.00042934,2]
[400586088,1767733848824,-300.0,0.00042934,2]
[400586089,1767733848833,-300.0,0.00042936,2]
[400586090,1767733848842,-300.0,0.00042937,2]
[400586091,1767733848851,-300.0,0.00042941,2]
[400586092,1767733848860,-300.0,0.00042944,2]
[400586093,1767733848870,-300.0,0.00042957,2]
[400586094,1767733848879,-20537.0,0.00042961,30]
[400586095,1767733848888,-300.0,0.00042968,2]
[400586096,1767733848897,-300.0,0.00042972,2]
[400586097,1767733848907,-300.0,0.00042979,2]
[400586098,1767733848916,-300.0,0.00042991,2]
[400586099,1767733848924,-300.0,0.00042999,2]
[400586100,1767733848934,-1120.22,0.00043,14]
[400586101,1767733848943,-2000.0,0.00043,120]
[400586102,1767733848952,-2000.0,0.00043,120]
[400586103,1767733848961,-171.435863,0.00043,120]
[400586104,1767733848973,-150.0,0.00043,120]
[400586105,1767733848984,-1032.0,0.00043,30]
[400586106,1767733848994,-2000.0,0.00043,120]
[400586107,1767733849003,-2282.7389,0.00043,120]
[400586108,1767733849014,-300.0,0.00043005,2]
[400586109,1767733849024,-300.0,0.00043008,2]
[400586110,1767733849033,-300.0,0.00043009,2]
[400586111,1767733849042,-300.0,0.0004301,2]
[400586112,1767733849051,-300.0,0.00043011,2]
[400586113,1767733849060,-300.0,0.00043015,2]
[400586114,1767733849070,-300.0,0.00043025,2]
[400586115,1767733849079,-152.53735496,0.00043031,14]
[400586116,1767733849089,-300.0,0.00043037,2]
[400586117,1767733849099,-300.0,0.00043038,2]
[400586118,1767733849108,-300.0,0.0004304,2]
[400586119,1767733849118,-3453.9544,0.0004304,120]
[400586120,1767733849127,-3453.9544,0.0004304,120]
[400586121,1767733849136,-3453.95439,0.0004304,120]
[400586122,1767733849145,-3453.9544,0.0004304,120]
[400586123,1767733849155,-3453.9544,0.0004304,120]
[400586124,1767733849164,-2483.2703733,0.00043047,30]
[400586125,1767733849173,-299.73918347,0.00043047,120]
[400586126,1767733849339,-300.0,0.00043054,2]
[400586127,1767733849348,-300.0,0.00043073,2]
[400586128,1767733849359,-300.0,0.00043085,2]
[400586129,1767733849368,-300.0,0.00043104,2]
[400586130,1767733849377,-300.0,0.00043123,2]
[400586131,1767733849387,-833.0,0.00043124,16]
[400586132,1767733849396,-300.0,0.00043133,2]
[400586133,1767733849405,-300.0,0.00043137,2]
[400586134,1767733849414,-985.0,0.00043138,16]
[400586135,1767733849423,-300.0,0.00043152,2]
[400586136,1767733849434,-300.0,0.00043153,2]
[400586137,1767733849443,-2500.0,0.00043157,120]
[400586138,1767733849452,-2500.0,0.00043157,120]
[400586139,1767733849463,-2500.0,0.00043157,120]
[400586140,1767733849472,-2500.0,0.00043157,120]
[400586141,1767733849482,-200.0,0.00043159,120]
[400586142,1767733849491,-300.0,0.00043165,2]
[400586143,1767733849500,-300.0,0.00043168,2]
[400586144,1767733849510,-300.0,0.00043169,2]
[400586145,1767733849519,-300.0,0.00043169,2]
[400586146,1767733849528,-300.0,0.00043172,2]
[400586147,1767733849538,-300.0,0.00043172,2]
[400586148,1767733849547,-300.0,0.00043173,2]
[400586149,1767733849556,-300.0,0.00043174,2]
[400586150,1767733849566,-300.0,0.00043184,2]
[400586151,1767733849576,-300.0,0.00043185,2]
[400586152,1767733849587,-300.0,0.00043197,2]
[400586153,1767733849598,-152.0,0.000432,120]
[400586154,1767733849608,-2346.47,0.000432,120]
[400586155,1767733849617,-150.0,0.00043201,14]
[400586156,1767733849629,-300.0,0.00043202,2]
[400586157,1767733849638,-300.0,0.00043204,2]
[400586158,1767733849648,-300.0,0.00043212,2]
[400586159,1767733849659,-300.0,0.00043218,2]
[400586160,1767733849668,-300.0,0.00043224,2]
[400586161,1767733849677,-300.0,0.00043224,2]
[400586162,1767733849687,-300.0,0.00043225,2]
[400586163,1767733849697,-300.0,0.00043228,2]
[400586164,1767733849707,-300.0,0.00043231,2]
[400586165,1767733849717,-300.0,0.00043235,2]
[400586166,1767733849728,-300.0,0.00043237,2]
[400586167,1767733849738,-300.0,0.00043239,2]
[400586168,1767733849748,-300.0,0.00043245,2]
[400586169,1767733849758,-300.0,0.0004325,2]
[400586170,1767733849769,-300.0,0.00043255,2]
[400586171,1767733849778,-300.0,0.00043261,2]
[400586172,1767733849787,-300.0,0.00043261,2]
[400586173,1767733849797,-165.71408053,0.0004327,120]
[400586174,1767733849806,-300.0,0.00043273,2]
[400586175,1767733849816,-500.0,0.00043288,10]
[400586176,1767733849825,-300.0,0.00043288,2]
[400586177,1767733849835,-232.48757784,0.00043298,120]
[400586178,1767733849844,-300.0,0.00043306,2]
[400586179,1767733849853,-300.0,0.0004331,2]
[400586180,1767733849863,-300.0,0.00043315,2]
[400586181,1767733849872,-300.0,0.00043316,2]
[400586182,1767733849882,-300.0,0.00043326,2]
[400586183,1767733849891,-300.0,0.00043333,2]
[400586184,1767733849900,-300.0,0.0004334,2]
[400586185,1767733849911,-300.0,0.00043347,2]
[400586186,1767733849921,-323.28463124,0.00043356,2]
[400586187,1767733849930,-2562.08208434,0.00043357,120]
[400586188,1767733849939,-300.0,0.00043365,2]
[400586189,1767733849950,-704.85854174,0.0004337,3]
[400586190,1767733849960,-300.0,0.00043372,2]
[400586191,1767733849969,-300.0,0.00043378,2]
[400586192,1767733849979,-300.0,0.00043381,2]
[400586193,1767733849987,-929.86010204,0.00043381,120]
[400586194,1767733849997,-4814.55666367,0.00043381,15]
[400586195,1767733850007,-5960.32232019,0.00043381,15]
[400586196,1767733850016,-462.8198376,0.00043381,28]
[400586197,1767733850025,-14842.29556854,0.00043381,15]
[400586198,1767733850035,-17585.01162265,0.00043381,2]
[400586199,1767733850045,-1175.52884139,0.00043381,2]
[400586200,1767733850055,-357.23026484,0.00043381,8]
[400586201,1767733850064,-847.60658973,0.00043381,2]
[400586202,1767733850075,-863.87770283,0.00043381,120]
[400586203,1767733850087,-863.87770283,0.00043381,120]
[400586204,1767733850096,-863.87770283,0.00043381,120]
[400586205,1767733850105,-863.87770283,0.00043381,120]
[400586206,1767733850115,-863.87770283,0.00043381,120]
[400586207,1767733850124,-863.87770283,0.00043381,120]
[400586208,1767733850133,-863.87770283,0.00043381,120]
[400586209,1767733850143,-863.87770283,0.00043381,120]
[400586210,1767733850152,-863.87770283,0.00043381,120]
[400586211,1767733850160,-863.87770283,0.00043381,120]
[400586212,1767733850170,-863.87770283,0.00043381,120]
[400586213,1767733850179,-863.87770283,0.00043381,120]
[400586214,1767733850188,-863.87770283,0.00043381,120]
[400586215,1767733850197,-863.87770283,0.00043381,120]
[400586216,1767733850208,-863.87770283,0.00043381,120]
[400586217,1767733850217,-863.87770283,0.00043381,120]
[400586218,1767733850226,-863.87770283,0.00043381,120]
[400586219,1767733850235,-863.87770283,0.00043381,120]
[400586220,1767733850245,-863.87770283,0.00043381,120]
[400586221,1767733850254,-863.87,0.00043381,120]
[400586222,1767733850263,-2015.71463993,0.00043381,120]
[400586223,1767733850272,-2015.71463993,0.00043381,120]
[400586224,1767733850283,-2015.71463993,0.00043381,120]
[400586225,1767733850295,-2015.71463993,0.00043381,120]
[400586226,1767733850306,-2015.71463993,0.00043381,120]
[400586227,1767733850316,-2015.71463993,0.00043381,120]
[400586228,1767733850325,-2015.71463993,0.00043381,120]
[400586229,1767733850335,-2015.71463993,0.00043381,120]
[400586230,1767733850344,-2015.71463993,0.00043381,120]
[400586231,1767733850354,-2015.71463993,0.00043381,120]
[400586232,1767733850364,-2015.71463993,0.00043381,120]
[400586233,1767733850373,-2015.71463993,0.00043381,120]
[400586234,1767733850383,-2015.71463993,0.00043381,120]
[400586235,1767733850392,-2015.71463993,0.00043381,120]
[400586236,1767733850402,-2015.71463993,0.00043381,120]
[400586237,1767733850412,-2015.71463993,0.00043381,120]
[400586238,1767733850421,-2015.71463993,0.00043381,120]
[400586239,1767733850430,-2015.71463993,0.00043381,120]
[400586240,1767733850439,-2015.71463993,0.00043381,120]
[400586241,1767733850448,-2015.71,0.00043381,120]
[400586242,1767733850458,-283.46,0.00043381,120]
[400586243,1767733850469,-269.47,0.00043381,120]
[400586244,1767733850480,-1000.0,0.00043382,2]
[400586245,1767733850490,-20537.0,0.00043383,30]
[400586246,1767733850499,-167.99433605,0.00043383,120]
[400586247,1767733850509,-483.06704357,0.00043383,11]
[400586248,1767733850519,-300.0,0.00043389,2]
[400586249,1767733850528,-15480.11203971,0.000434,30]
[400586250,1767733850537,-1000.0,0.000434,120]
[400586251,1767733850547,-150.0,0.000434,66]
[400586252,1767733850556,-189.6,0.000434,27]
[400586253,1767733850565,-150.41,0.000434,90]
[400586254,1767733850575,-253.0,0.000434,42]
[400586255,1767733850584,-706.05,0.000434,120]
[400586256,1767733850593,-300.0,0.00043406,2]
[400586257,1767733850604,-300.0,0.00043406,2]
[400586258,1767733850614,-1000.0,0.0004342,120]
[400586259,1767733850624,-502.0,0.00043424,17]
[400586260,1767733850633,-300.0,0.00043426,2]
[400586261,1767733850644,-300.0,0.00043427,2]
[400586262,1767733850654,-300.0,0.0004343,2]
[400586263,1767733850664,-300.0,0.0004344,2]
[400586264,1767733850674,-26270.1038057,0.00043443,2]
[400586265,1767733850688,-300.0,0.00043448,2]
[400586266,1767733850698,-1000.0,0.0004345,120]
[400586267,1767733850707,-800.0,0.00043452,16]
[400586268,1767733850717,-800.0,0.00043452,16]
[400586269,1767733850727,-800.0,0.00043452,16]
[400586270,1767733850737,-800.0,0.00043452,16]
[400586271,1767733850746,-800.0,0.00043452,16]
[400586272,1767733850755,-800.0,0.00043452,16]
[400586273,1767733850765,-800.0,0.00043452,16]
[400586274,1767733850774,-800.0,0.00043452,16]
[400586275,1767733850783,-800.0,0.00043452,16]
[400586276,1767733850792,-800.0,0.00043452,16]
[400586277,1767733850802,-800.0,0.00043452,16]
[400586278,1767733850811,-800.0,0.00043452,16]
[400586279,1767733850820,-800.0,0.00043452,16]
[400586280,1767733850830,-800.0,0.00043452,16]
[400586281,1767733850839,-800.0,0.00043452,16]
[400586282,1767733850849,-800.0,0.00043452,16]
[400586283,1767733850858,-2500.0,0.00043457,120]
[400586284,1767733850867,-400.0,0.0004347,3]
[400586285,1767733850876,-400.0,0.0004347,3]
[400586286,1767733850886,-215.66257831,0.00043471,7]
[400586287,1767733850895,-1000.0,0.00043474,120]
[400586288,1767733850905,-1000.0,0.00043475,2]
[400586289,1767733850915,-1000.0,0.00043475,2]
[400586290,1767733850924,-1000.0,0.00043475,2]
[400586291,1767733850933,-1000.0,0.00043475,2]
[400586292,1767733850942,-1000.0,0.00043475,2]
[400586293,1767733850952,-1000.0,0.00043475,2]
[400586294,1767733850961,-1000.0,0.00043475,2]
[400586295,1767733850971,-1000.0,0.00043475,2]
[400586296,1767733850980,-1000.0,0.00043475,2]
[400586297,1767733850990,-1000.0,0.00043475,2]
[400586298,1767733850999,-774.272,0.00043475,2]
[400586299,1767733851010,-3388.2,0.00043475,120]
[400586300,1767733851019,-3453.9544,0.00043475,120]
[400586301,1767733851028,-3453.9544,0.00043475,120]
[400586302,1767733851038,-3453.9544,0.00043475,120]
[400586303,1767733851047,-3453.9544,0.00043475,120]
[400586304,1767733851056,-3453.9544,0.00043475,120]
[400586305,1767733851066,-300.0,0.00043477,30]
[400586306,1767733851076,-300.0,0.00043477,30]
[400586307,1767733851086,-300.0,0.00043477,30]
[400586308,1767733851095,-300.0,0.00043477,30]
[400586309,1767733851104,-300.0,0.00043477,30]
[400586310,1767733851115,-300.0,0.00043477,30]
[400586311,1767733851125,-300.0,0.00043477,30]
[400586312,1767733851135,-300.0,0.00043477,30]
[400586313,1767733851144,-300.0,0.00043477,30]
[400586314,1767733851155,-151.0,0.00043478,120]
[400586315,1767733851165,-176.251751,0.00043478,120]
[400586316,1767733851175,-151.0,0.00043478,120]
[400586317,1767733851184,-151.0,0.00043478,120]
[400586318,1767733851194,-151.0,0.00043478,120]
[400586319,1767733851203,-151.0,0.00043478,120]
[400586320,1767733851212,-151.0,0.00043478,120]
[400586321,1767733851222,-151.0,0.00043478,120]
[400586322,1767733851231,-151.0,0.00043478,120]
[400586323,1767733851240,-151.0,0.00043478,120]
[400586324,1767733851249,-151.0,0.00043478,120]
[400586325,1767733851259,-256.673018,0.00043478,120]
[400586326,1767733851268,-151.0,0.00043478,120]
[400586327,1767733851278,-151.0,0.00043478,120]
[400586328,1767733851292,-151.0,0.00043478,120]
[400586329,1767733851302,-151.0,0.00043478,120]
[400586330,1767733851311,-151.0,0.00043478,120]
[400586331,1767733851321,-158.541394,0.00043478,120]
[400586332,1767733851331,-151.0,0.00043478,120]
[400586333,1767733851340,-151.0,0.00043478,120]
[400586334,1767733851490,-151.0,0.00043478,120]
[400586335,1767733851501,-151.0,0.00043478,120]
[400586336,1767733851510,-151.0,0.00043478,120]
[400586337,1767733851519,-205.518596,0.00043478,120]
[400586338,1767733851528,-151.0,0.00043478,120]
[400586339,1767733851537,-151.0,0.00043478,120]
[400586340,1767733851546,-165.239909,0.00043478,120]
[400586341,1767733851555,-151.0,0.00043478,120]
[400586342,1767733851564,-151.0,0.00043478,120]
[400586343,1767733851573,-151.0,0.00043478,120]
[400586344,1767733851582,-151.0,0.00043478,120]
[400586345,1767733851591,-151.0,0.00043478,120]
[400586346,1767733851600,-151.0,0.00043478,120]
[400586347,1767733851609,-151.0,0.00043478,120]
[400586348,1767733851618,-151.0,0.00043478,120]
[400586349,1767733851628,-151.0,0.00043478,120]
[400586350,1767733851637,-151.0,0.00043478,120]
[400586351,1767733851647,-151.0,0.00043478,120]
[400586352,1767733851656,-151.0,0.00043478,120]
[400586353,1767733851665,-151.0,0.00043478,120]
[400586354,1767733851674,-151.0,0.00043478,120]
[400586355,1767733851683,-151.0,0.00043478,120]
[400586356,1767733851693,-256.18893,0.00043478,120]
[400586357,1767733851702,-151.0,0.00043478,120]
[400586358,1767733851711,-151.0,0.00043478,120]
[400586359,1767733851719,-151.0,0.00043478,120]
[400586360,1767733851728,-151.0,0.00043478,120]
[400586361,1767733851737,-151.0,0.00043478,120]
[400586362,1767733851746,-151.0,0.00043478,120]
[400586363,1767733851755,-151.0,0.00043478,120]
[400586364,1767733851764,-151.0,0.00043478,120]
[400586365,1767733851773,-151.0,0.00043478,120]
[400586366,1767733851782,-151.0,0.00043478,120]
[400586367,1767733851791,-151.0,0.00043478,120]
[400586368,1767733851800,-151.0,0.00043478,120]
[400586369,1767733851809,-151.0,0.00043478,120]
[400586370,1767733851818,-162.638011,0.00043478,120]
[400586371,1767733851827,-151.0,0.00043478,120]
[400586372,1767733851836,-151.0,0.00043478,120]
[400586373,1767733851845,-154.15747,0.00043478,120]
[400586374,1767733851854,-461.713258,0.00043478,120]
[400586375,1767733851864,-461.713258,0.00043478,120]
[400586376,1767733851873,-461.713258,0.00043478,120]
[400586377,1767733851883,-461.713258,0.00043478,120]
[400586378,1767733851892,-461.713258,0.00043478,120]
[400586379,1767733851901,-461.713258,0.00043478,120]
[400586380,1767733851910,-461.713258,0.00043478,120]
[400586381,1767733851919,-461.713258,0.00043478,120]
[400586382,1767733851928,-461.713258,0.00043478,120]
[400586383,1767733851938,-461.713258,0.00043478,120]
[400586384,1767733851946,-461.713258,0.00043478,120]
[400586385,1767733851956,-461.713258,0.00043478,120]
[400586386,1767733851965,-461.713258,0.00043478,120]
[400586387,1767733851976,-461.713258,0.00043478,120]
[400586388,1767733851985,-461.713258,0.00043478,120]
[400586389,1767733851999,-461.713258,0.00043478,120]
[400586390,1767733852008,-461.713258,0.00043478,120]
[400586391,1767733852017,-461.713258,0.00043478,120]
[400586392,1767733852026,-461.713258,0.00043478,120]
[400586393,1767733852035,-461.713262,0.00043478,120]
[400586394,1767733852044,-151.0,0.00043478,120]
[400586395,1767733852053,-151.0,0.00043478,120]
[400586396,1767733852062,-151.0,0.00043478,120]
[400586397,1767733852071,-151.0,0.00043478,120]
[400586398,1767733852080,-151.0,0.00043478,120]
[400586399,1767733852089,-151.0,0.00043478,120]
[400586400,1767733852098,-291.61897085,0.00043478,120]
[400586401,1767733852108,-151.0,0.00043478,30]
[400586402,1767733852118,-151.0,0.00043478,30]
[400586403,1767733852127,-151.0,0.00043478,30]
[400586404,1767733852137,-151.0,0.00043478,30]
[400586405,1767733852149,-151.0,0.00043478,45]
[400586406,1767733852159,-217.18995,0.00043478,45]
[400586407,1767733852168,-185.220441,0.00043478,120]
[400586408,1767733852177,-460.906222,0.00043478,120]
[400586409,1767733852186,-460.906222,0.00043478,120]
[400586410,1767733852195,-460.906222,0.00043478,120]
[400586411,1767733852205,-460.906222,0.00043478,120]
[400586412,1767733852214,-152.956426,0.00043478,120]
[400586413,1767733852223,-460.906222,0.00043478,120]
[400586414,1767733852232,-152.956426,0.00043478,120]
[400586415,1767733852242,-460.906222,0.00043478,120]
[400586416,1767733852251,-152.956426,0.00043478,120]
[400586417,1767733852260,-460.906222,0.00043478,120]
[400586418,1767733852270,-152.956426,0.00043478,120]
[400586419,1767733852279,-460.906222,0.00043478,120]
[400586420,1767733852293,-152.956426,0.00043478,120]